[Event "Titled Tuesday Blitz April 12 Early 2022"]
[White "Pliukha, Myhajlo"]
[Black "Ansh M Shah"]
[WhiteFideId "14164698"]
[BlackFideId "25033379"]
[WhiteElo "2229"]
[BlackElo "1819"]
[Result "1-0"]
[Round "02"]
[TimeControl "180+1"]
[Date "2022.04.13"]
[WhiteClock "0:01:10"]
[BlackClock "0:00:35"]

1. e4 {[%clk 0:03:00]}  c6 {[%clk 0:02:59]} 2. d4 {[%clk 0:03:01]}  d5 {[%clk 0:03:00]} 3. Nc3 {[%clk 0:03:02]}  dxe4 {[%clk 0:02:59]} 4. Nxe4 {[%clk 0:03:03]}  Nf6 {[%clk 0:02:59]} 5. Nxf6+ {[%clk 0:03:03]}  exf6 {[%clk 0:03:00]} 6. c3 {[%clk 0:03:03]}  Bd6 {[%clk 0:03:00]} 7. Bd3 {[%clk 0:03:04]}  O-O {[%clk 0:03:01]} 8. Qc2 {[%clk 0:03:05]}  Re8+ {[%clk 0:03:00]} 9. Ne2 {[%clk 0:03:06]}  h5 {[%clk 0:03:01]} 10. O-O {[%clk 0:03:06]}  Qc7 {[%clk 0:02:55]} 11. h3 {[%clk 0:02:57]}  Nd7 {[%clk 0:02:52]} 12. Ng3 {[%clk 0:02:57]}  Bxg3 {[%clk 0:02:43]} 13. fxg3 {[%clk 0:02:58]}  Qxg3 {[%clk 0:02:26]} 14. Bf4 {[%clk 0:02:58]}  Qh4 {[%clk 0:02:26]} 15. g3 {[%clk 0:02:58]}  Qxh3 {[%clk 0:02:21]} 16. Bh7+ {[%clk 0:02:50]}  Kh8 {[%clk 0:02:01]} 17. Bf5 {[%clk 0:02:50]}  Re2 {[%clk 0:01:45]} 18. Qxe2 {[%clk 0:02:50]}  Qxf5 {[%clk 0:01:45]} 19. Qe8+ {[%clk 0:02:45]}  Kh7 {[%clk 0:01:45]} 20. Rae1 {[%clk 0:02:35]}  Nb6 {[%clk 0:01:35]} 21. Qxf7 {[%clk 0:02:32]}  Bd7 {[%clk 0:01:26]} 22. Re7 {[%clk 0:02:01]}  Qg4 {[%clk 0:01:20]} 23. c4 {[%clk 0:01:15]}  Rg8 {[%clk 0:00:47]} 24. Qxf6 {[%clk 0:01:10]}  Nxc4 {[%clk 0:00:35]} 25. Qh6# {[%clk 0:01:10]} 1-0


[Site "https://www.chess.com"]

[Event "Titled Tuesday Blitz April 12 Early 2022"]
[White "Pourkashiyan, Atousa"]
[Black "Babazada, Khazar"]
[WhiteFideId "12502014"]
[BlackFideId "13413554"]
[WhiteElo "2247"]
[BlackElo "2406"]
[Result "1-0"]
[Round "02"]
[TimeControl "180+1"]
[Date "2022.04.13"]
[WhiteClock "0:00:31"]
[BlackClock "0:00:47"]

1. e4 {[%clk 0:03:00]}  Nf6 {[%clk 0:02:59]} 2. e5 {[%clk 0:03:00]}  Nd5 {[%clk 0:02:59]} 3. d4 {[%clk 0:02:58]}  d6 {[%clk 0:02:59]} 4. Nf3 {[%clk 0:02:58]}  Nb6 {[%clk 0:02:59]} 5. Be2 {[%clk 0:02:55]}  g6 {[%clk 0:03:00]} 6. O-O {[%clk 0:02:55]}  Bg7 {[%clk 0:02:59]} 7. exd6 {[%clk 0:02:55]}  cxd6 {[%clk 0:02:59]} 8. c3 {[%clk 0:02:47]}  O-O {[%clk 0:02:57]} 9. Bg5 {[%clk 0:02:43]}  Nc6 {[%clk 0:02:57]} 10. Re1 {[%clk 0:02:43]}  h6 {[%clk 0:02:54]} 11. Bh4 {[%clk 0:02:43]}  Be6 {[%clk 0:02:49]} 12. Nbd2 {[%clk 0:02:40]}  Qd7 {[%clk 0:02:46]} 13. h3 {[%clk 0:02:38]}  Rae8 {[%clk 0:02:44]} 14. Bd3 {[%clk 0:02:35]}  Bf5 {[%clk 0:02:44]} 15. Ne4 {[%clk 0:02:28]}  g5 {[%clk 0:02:41]} 16. Bg3 {[%clk 0:02:27]}  Bg6 {[%clk 0:02:40]} 17. Qd2 {[%clk 0:02:17]}  f5 {[%clk 0:02:17]} 18. Nexg5 {[%clk 0:02:17]}  hxg5 {[%clk 0:02:18]} 19. Qxg5 {[%clk 0:02:17]}  Bh7 {[%clk 0:02:18]} 20. Qh5 {[%clk 0:01:47]}  e6 {[%clk 0:01:46]} 21. Bxd6 {[%clk 0:00:53]}  Nd5 {[%clk 0:01:23]} 22. Bh2 {[%clk 0:00:44]}  Bf6 {[%clk 0:01:16]} 23. Bc4 {[%clk 0:00:42]}  Na5 {[%clk 0:01:10]} 24. Bxd5 {[%clk 0:00:41]}  exd5 {[%clk 0:01:09]} 25. Rxe8 {[%clk 0:00:40]}  Rxe8 {[%clk 0:01:10]} 26. Ng5 {[%clk 0:00:40]}  Bxg5 {[%clk 0:01:07]} 27. Qxg5+ {[%clk 0:00:40]}  Qg7 {[%clk 0:01:08]} 28. Qh5 {[%clk 0:00:36]}  Bg6 {[%clk 0:01:07]} 29. Qf3 {[%clk 0:00:37]}  Bh7 {[%clk 0:01:07]} 30. Qxd5+ {[%clk 0:00:36]}  Kh8 {[%clk 0:00:51]} 31. Qxa5 {[%clk 0:00:35]}  b6 {[%clk 0:00:49]} 32. Qd5 {[%clk 0:00:34]}  Bg8 {[%clk 0:00:49]} 33. Qc6 {[%clk 0:00:31]}  Re6 {[%clk 0:00:47]} 34. Qxe6 {[%clk 0:00:31]} 1-0


[Site "https://www.chess.com"]

[Event "Titled Tuesday Blitz April 12 Early 2022"]
[White "Przybylski, Wojciech"]
[Black "Hansen, Eric"]
[WhiteFideId "1117599"]
[BlackFideId "2606771"]
[WhiteElo "2133"]
[BlackElo "2568"]
[Result "0-1"]
[Round "02"]
[TimeControl "180+1"]
[Date "2022.04.13"]
[WhiteClock "0:00:01"]
[BlackClock "0:00:22"]

1. e4 {[%clk 0:02:59]}  c5 {[%clk 0:02:58]} 2. Nf3 {[%clk 0:02:59]}  e6 {[%clk 0:02:58]} 3. b3 {[%clk 0:02:58]}  Nf6 {[%clk 0:02:58]} 4. e5 {[%clk 0:02:56]}  Nd5 {[%clk 0:02:58]} 5. Bb2 {[%clk 0:02:56]}  Nc6 {[%clk 0:02:57]} 6. Nc3 {[%clk 0:02:56]}  d6 {[%clk 0:02:51]} 7. exd6 {[%clk 0:02:54]}  Qxd6 {[%clk 0:02:48]} 8. Ne4 {[%clk 0:02:46]}  Qc7 {[%clk 0:02:48]} 9. Bb5 {[%clk 0:02:38]}  Bd7 {[%clk 0:02:48]} 10. O-O {[%clk 0:02:33]}  f6 {[%clk 0:02:43]} 11. c4 {[%clk 0:02:22]}  Nf4 {[%clk 0:02:39]} 12. d3 {[%clk 0:02:12]}  a6 {[%clk 0:02:39]} 13. Ba4 {[%clk 0:01:58]}  O-O-O {[%clk 0:02:36]} 14. g3 {[%clk 0:01:54]}  Ng6 {[%clk 0:02:34]} 15. Qe2 {[%clk 0:01:50]}  e5 {[%clk 0:02:32]} 16. Nc3 {[%clk 0:01:47]}  Be6 {[%clk 0:02:28]} 17. a3 {[%clk 0:01:31]}  h5 {[%clk 0:02:20]} 18. b4 {[%clk 0:01:28]}  Bg4 {[%clk 0:02:08]} 19. Nd5 {[%clk 0:01:25]}  Qd6 {[%clk 0:02:05]} 20. bxc5 {[%clk 0:01:11]}  Qxc5 {[%clk 0:02:03]} 21. Qe3 {[%clk 0:01:08]}  h4 {[%clk 0:01:51]} 22. Nd2 {[%clk 0:01:04]}  hxg3 {[%clk 0:01:50]} 23. hxg3 {[%clk 0:01:02]}  Qxe3 {[%clk 0:01:36]} 24. fxe3 {[%clk 0:01:01]}  Be2 {[%clk 0:01:37]} 25. Rf2 {[%clk 0:00:32]}  Bxd3 {[%clk 0:01:37]} 26. Bxc6 {[%clk 0:00:31]}  bxc6 {[%clk 0:01:37]} 27. Nb4 {[%clk 0:00:31]}  Bc5 {[%clk 0:01:30]} 28. Re1 {[%clk 0:00:17]}  Kb7 {[%clk 0:01:24]} 29. Kg2 {[%clk 0:00:13]}  a5 {[%clk 0:01:22]} 30. Na2 {[%clk 0:00:13]}  Ne7 {[%clk 0:01:06]} 31. Nc1 {[%clk 0:00:13]}  a4 {[%clk 0:01:03]} 32. Kf3 {[%clk 0:00:10]}  Bg6 {[%clk 0:01:00]} 33. g4 {[%clk 0:00:09]}  Rh3+ {[%clk 0:00:59]} 34. Kg2 {[%clk 0:00:08]}  Rxe3 {[%clk 0:01:00]} 35. Rd1 {[%clk 0:00:05]}  Bxa3 {[%clk 0:00:50]} 36. Bxa3 {[%clk 0:00:05]}  Rxa3 {[%clk 0:00:51]} 37. Rff1 {[%clk 0:00:05]}  Bc2 {[%clk 0:00:50]} 38. Nb1 {[%clk 0:00:04]}  Rxd1 {[%clk 0:00:45]} 39. Nxa3 {[%clk 0:00:04]}  Be4+ {[%clk 0:00:43]} 40. Kf2 {[%clk 0:00:04]}  Rxf1+ {[%clk 0:00:42]} 41. Kxf1 {[%clk 0:00:04]}  Kb6 {[%clk 0:00:43]} 42. Ke2 {[%clk 0:00:04]}  Ka5 {[%clk 0:00:41]} 43. Na2 {[%clk 0:00:04]}  Bh7 {[%clk 0:00:31]} 44. Kd2 {[%clk 0:00:04]}  Nc8 {[%clk 0:00:25]} 45. Kc3 {[%clk 0:00:04]}  Nd6 {[%clk 0:00:24]} 46. Nc1 {[%clk 0:00:03]}  Ne4+ {[%clk 0:00:23]} 47. Kb2 {[%clk 0:00:03]}  Nf2 {[%clk 0:00:21]} 48. Na2 {[%clk 0:00:02]}  Nxg4 {[%clk 0:00:20]} 49. Kc3 {[%clk 0:00:03]}  Ne3 {[%clk 0:00:20]} 50. Kd2 {[%clk 0:00:02]}  Nf5 {[%clk 0:00:20]} 51. Kc3 {[%clk 0:00:02]}  Nd4 {[%clk 0:00:20]} 52. Kd2 {[%clk 0:00:02]}  g5 {[%clk 0:00:20]} 53. Ke3 {[%clk 0:00:02]}  g4 {[%clk 0:00:20]} 54. c5 {[%clk 0:00:02]}  Bg8 {[%clk 0:00:20]} 55. Nc3 {[%clk 0:00:02]}  Kb4 {[%clk 0:00:20]} 56. Nab1 {[%clk 0:00:02]}  a3 {[%clk 0:00:20]} 57. Nxa3 {[%clk 0:00:02]}  Kxa3 {[%clk 0:00:21]} 58. Ne4 {[%clk 0:00:02]}  f5 {[%clk 0:00:21]} 59. Nd6 {[%clk 0:00:02]}  Bd5 {[%clk 0:00:22]} 60. Nc8 {[%clk 0:00:01]}  Kb4 {[%clk 0:00:21]} 61. Ne7 {[%clk 0:00:01]}  Kxc5 {[%clk 0:00:22]} 62. Kf2 {[%clk 0:00:01]}  f4 {[%clk 0:00:22]} 63. Kg1 {[%clk 0:00:01]}  g3 {[%clk 0:00:22]} 64. Kf1 {[%clk 0:00:02]}  f3 {[%clk 0:00:22]} 65. Ng6 {[%clk 0:00:01]}  Bc4+ {[%clk 0:00:23]} 66. Kg1 {[%clk 0:00:01]}  f2+ {[%clk 0:00:23]} 67. Kg2 {[%clk 0:00:01]}  f1=Q+ {[%clk 0:00:24]} 68. Kxg3 {[%clk 0:00:02]}  Qg1+ {[%clk 0:00:24]} 69. Kh3 {[%clk 0:00:02]}  Be6+ {[%clk 0:00:24]} 70. Kh4 {[%clk 0:00:01]}  Nf3+ {[%clk 0:00:22]} 71. Kh5 {[%clk 0:00:01]}  Qg5# {[%clk 0:00:22]} 0-1


[Site "https://www.chess.com"]

[Event "Titled Tuesday Blitz April 12 Early 2022"]
[White "Raahul V S"]
[Black "Zemlyanskii, Ivan"]
[WhiteFideId "25035525"]
[BlackFideId "24249971"]
[WhiteElo "2185"]
[BlackElo "1759"]
[Result "0-1"]
[Round "02"]
[TimeControl "180+1"]
[Date "2022.04.13"]
[WhiteClock "0:00:01"]
[BlackClock "0:00:08"]

1. c4 {[%clk 0:03:00]}  e5 {[%clk 0:02:58]} 2. Nc3 {[%clk 0:02:58]}  Bb4 {[%clk 0:02:58]} 3. g3 {[%clk 0:02:56]}  Nf6 {[%clk 0:02:54]} 4. Bg2 {[%clk 0:02:55]}  c6 {[%clk 0:02:52]} 5. Nf3 {[%clk 0:02:53]}  e4 {[%clk 0:02:52]} 6. Nd4 {[%clk 0:02:53]}  Qe7 {[%clk 0:02:46]} 7. O-O {[%clk 0:02:48]}  O-O {[%clk 0:02:43]} 8. d3 {[%clk 0:02:27]}  d5 {[%clk 0:02:29]} 9. cxd5 {[%clk 0:02:18]}  cxd5 {[%clk 0:02:30]} 10. Bg5 {[%clk 0:02:15]}  Bxc3 {[%clk 0:02:24]} 11. bxc3 {[%clk 0:02:14]}  Nbd7 {[%clk 0:02:22]} 12. Nb5 {[%clk 0:02:06]}  Qc5 {[%clk 0:02:15]} 13. a4 {[%clk 0:01:46]}  a6 {[%clk 0:02:15]} 14. Be3 {[%clk 0:01:41]}  Qc6 {[%clk 0:02:03]} 15. Qc2 {[%clk 0:01:34]}  Ne5 {[%clk 0:01:50]} 16. Bd4 {[%clk 0:00:56]}  Re8 {[%clk 0:01:43]} 17. Na7 {[%clk 0:00:52]}  Qc7 {[%clk 0:01:39]} 18. Nxc8 {[%clk 0:00:51]}  Raxc8 {[%clk 0:01:40]} 19. dxe4 {[%clk 0:00:46]}  dxe4 {[%clk 0:01:36]} 20. Bxe4 {[%clk 0:00:46]}  Nxe4 {[%clk 0:01:18]} 21. Qxe4 {[%clk 0:00:47]}  Ng6 {[%clk 0:00:58]} 22. Qf3 {[%clk 0:00:43]}  Re7 {[%clk 0:00:48]} 23. Rfb1 {[%clk 0:00:39]}  Rce8 {[%clk 0:00:48]} 24. e3 {[%clk 0:00:38]}  Qd7 {[%clk 0:00:41]} 25. h4 {[%clk 0:00:32]}  Re4 {[%clk 0:00:37]} 26. h5 {[%clk 0:00:29]}  Nf8 {[%clk 0:00:27]} 27. h6 {[%clk 0:00:20]}  Ng6 {[%clk 0:00:19]} 28. hxg7 {[%clk 0:00:18]}  Rg4 {[%clk 0:00:20]} 29. Kf1 {[%clk 0:00:17]}  Qe6 {[%clk 0:00:19]} 30. Rxb7 {[%clk 0:00:16]}  Nh4 {[%clk 0:00:17]} 31. gxh4 {[%clk 0:00:12]}  Qc4+ {[%clk 0:00:18]} 32. Qe2 {[%clk 0:00:05]}  Rg1+ {[%clk 0:00:17]} 33. Kxg1 {[%clk 0:00:06]}  Qxe2 {[%clk 0:00:18]} 34. Rab1 {[%clk 0:00:05]}  Qg4+ {[%clk 0:00:17]} 35. Kf1 {[%clk 0:00:05]}  Qh3+ {[%clk 0:00:17]} 36. Ke2 {[%clk 0:00:05]}  Qg4+ {[%clk 0:00:17]} 37. Kd2 {[%clk 0:00:04]}  Qg2 {[%clk 0:00:18]} 38. Ke2 {[%clk 0:00:04]}  Qg4+ {[%clk 0:00:17]} 39. Kd2 {[%clk 0:00:04]}  Qf3 {[%clk 0:00:17]} 40. Ke1 {[%clk 0:00:04]}  Qh1+ {[%clk 0:00:11]} 41. Ke2 {[%clk 0:00:04]}  Qc6 {[%clk 0:00:11]} 42. Rb8 {[%clk 0:00:03]}  h6 {[%clk 0:00:11]} 43. Rxe8+ {[%clk 0:00:03]}  Qxe8 {[%clk 0:00:12]} 44. Rb6 {[%clk 0:00:01]}  Qc8 {[%clk 0:00:09]} 45. Kd2 {[%clk 0:00:01]}  Qc7 {[%clk 0:00:08]} 0-1


[Site "https://www.chess.com"]

[Event "Titled Tuesday Blitz April 12 Early 2022"]
[White "Rabineau, Clement"]
[Black "Lianes Garcia, Marcos"]
[WhiteFideId "628891"]
[BlackFideId "32060777"]
[WhiteElo "2237"]
[BlackElo "2310"]
[Result "0-1"]
[Round "02"]
[TimeControl "180+1"]
[Date "2022.04.13"]
[WhiteClock "0:00:02"]
[BlackClock "0:01:04"]

1. e4 {[%clk 0:03:00]}  g6 {[%clk 0:03:00]} 2. d4 {[%clk 0:03:00]}  Bg7 {[%clk 0:03:01]} 3. c4 {[%clk 0:03:00]}  c5 {[%clk 0:03:01]} 4. Ne2 {[%clk 0:02:54]}  Nc6 {[%clk 0:03:00]} 5. Be3 {[%clk 0:02:53]}  Qb6 {[%clk 0:02:57]} 6. Nbc3 {[%clk 0:02:38]}  cxd4 {[%clk 0:02:56]} 7. Nd5 {[%clk 0:02:38]}  Qa5+ {[%clk 0:02:50]} 8. Bd2 {[%clk 0:02:37]}  Qd8 {[%clk 0:02:49]} 9. h4 {[%clk 0:02:31]}  e6 {[%clk 0:02:45]} 10. Nb4 {[%clk 0:02:26]}  Ne5 {[%clk 0:02:28]} 11. Nxd4 {[%clk 0:02:12]}  Ne7 {[%clk 0:02:19]} 12. Bc3 {[%clk 0:02:02]}  O-O {[%clk 0:02:08]} 13. h5 {[%clk 0:02:01]}  a6 {[%clk 0:02:03]} 14. Nbc2 {[%clk 0:01:06]}  Qc7 {[%clk 0:02:01]} 15. Ne3 {[%clk 0:01:01]}  b5 {[%clk 0:01:51]} 16. cxb5 {[%clk 0:00:57]}  axb5 {[%clk 0:01:52]} 17. Bxb5 {[%clk 0:00:52]}  Bb7 {[%clk 0:01:50]} 18. f4 {[%clk 0:00:41]}  N5c6 {[%clk 0:01:49]} 19. Nxc6 {[%clk 0:00:37]}  Nxc6 {[%clk 0:01:49]} 20. Bxg7 {[%clk 0:00:34]}  Kxg7 {[%clk 0:01:50]} 21. Bxc6 {[%clk 0:00:28]}  Bxc6 {[%clk 0:01:49]} 22. Qd4+ {[%clk 0:00:28]}  e5 {[%clk 0:01:32]} 23. fxe5 {[%clk 0:00:29]}  Ra4 {[%clk 0:01:31]} 24. Qc3 {[%clk 0:00:25]}  Rxe4 {[%clk 0:01:23]} 25. hxg6 {[%clk 0:00:19]}  hxg6 {[%clk 0:01:19]} 26. e6+ {[%clk 0:00:18]}  Qe5 {[%clk 0:01:19]} 27. Qxe5+ {[%clk 0:00:04]}  Rxe5 {[%clk 0:01:20]} 28. Kd2 {[%clk 0:00:04]}  dxe6 {[%clk 0:01:20]} 29. Rae1 {[%clk 0:00:04]}  Ra8 {[%clk 0:01:13]} 30. a3 {[%clk 0:00:04]}  Rb5 {[%clk 0:01:13]} 31. Kc1 {[%clk 0:00:04]}  Be4 {[%clk 0:01:09]} 32. Re2 {[%clk 0:00:04]}  Rc8+ {[%clk 0:01:09]} 33. Kd1 {[%clk 0:00:04]}  Rbc5 {[%clk 0:01:07]} 34. Rf1 {[%clk 0:00:02]}  Bd3 {[%clk 0:01:04]} 0-1


[Site "https://www.chess.com"]

[Event "Titled Tuesday Blitz April 12 Early 2022"]
[White "Reprintsev, Alexander"]
[Black "Hess, Robert"]
[WhiteFideId "14100541"]
[BlackFideId "2022036"]
[WhiteElo "2108"]
[BlackElo "2557"]
[Result "0-1"]
[Round "02"]
[TimeControl "180+1"]
[Date "2022.04.13"]
[WhiteClock "0:01:03"]
[BlackClock "0:00:03"]

1. e4 {[%clk 0:02:33]}  g6 {[%clk 0:02:59]} 2. d4 {[%clk 0:02:28]}  Bg7 {[%clk 0:02:59]} 3. Nc3 {[%clk 0:02:28]}  a6 {[%clk 0:03:00]} 4. h4 {[%clk 0:02:27]}  h6 {[%clk 0:02:59]} 5. f4 {[%clk 0:02:27]}  h5 {[%clk 0:02:58]} 6. Nf3 {[%clk 0:02:26]}  d6 {[%clk 0:02:58]} 7. Ng5 {[%clk 0:02:25]}  Nh6 {[%clk 0:02:58]} 8. Be2 {[%clk 0:02:23]}  Bg4 {[%clk 0:02:44]} 9. Bf3 {[%clk 0:02:23]}  Qd7 {[%clk 0:02:39]} 10. Be3 {[%clk 0:02:16]}  Nc6 {[%clk 0:02:20]} 11. d5 {[%clk 0:02:16]}  Nd8 {[%clk 0:02:20]} 12. Qd2 {[%clk 0:02:15]}  f6 {[%clk 0:02:14]} 13. Nh3 {[%clk 0:02:15]}  c5 {[%clk 0:01:41]} 14. dxc6 {[%clk 0:02:12]}  bxc6 {[%clk 0:01:40]} 15. O-O-O {[%clk 0:02:12]}  Rb8 {[%clk 0:01:35]} 16. Nf2 {[%clk 0:02:12]}  Ndf7 {[%clk 0:00:59]} 17. Nxg4 {[%clk 0:02:06]}  Nxg4 {[%clk 0:00:57]} 18. Rhe1 {[%clk 0:01:49]}  Nxe3 {[%clk 0:00:49]} 19. Qxe3 {[%clk 0:01:48]}  O-O {[%clk 0:00:50]} 20. f5 {[%clk 0:01:45]}  Bh6 {[%clk 0:00:49]} 21. fxg6 {[%clk 0:01:41]}  Bxe3+ {[%clk 0:00:47]} 22. Rxe3 {[%clk 0:01:42]}  Ne5 {[%clk 0:00:46]} 23. Bxh5 {[%clk 0:01:41]}  Rxb2 {[%clk 0:00:39]} 24. g7 {[%clk 0:01:35]}  Rfb8 {[%clk 0:00:25]} 25. Rg3 {[%clk 0:01:35]}  Qe6 {[%clk 0:00:21]} 26. Be2 {[%clk 0:01:33]}  Rxa2 {[%clk 0:00:09]} 27. Nxa2 {[%clk 0:01:29]}  Qxa2 {[%clk 0:00:10]} 28. Kd2 {[%clk 0:01:28]}  Qa5+ {[%clk 0:00:10]} 29. Ke3 {[%clk 0:01:27]}  Rb2 {[%clk 0:00:06]} 30. Bd3 {[%clk 0:01:21]}  Qc5+ {[%clk 0:00:06]} 31. Kf4 {[%clk 0:01:12]}  Nxd3+ {[%clk 0:00:05]} 32. cxd3 {[%clk 0:01:08]}  Rf2+ {[%clk 0:00:04]} 33. Kg4 {[%clk 0:01:07]}  Kxg7 {[%clk 0:00:04]} 34. Kh3+ {[%clk 0:01:07]}  Kf7 {[%clk 0:00:04]} 35. d4 {[%clk 0:01:06]}  Qc2 {[%clk 0:00:03]} 36. Re1 {[%clk 0:01:04]}  Qd2 {[%clk 0:00:03]} 37. Ree3 {[%clk 0:01:03]}  Qxd4 {[%clk 0:00:03]} 38. h5 {[%clk 0:01:03]}  Qe5 {[%clk 0:00:03]} 39. Kh4 {[%clk 0:01:03]}  Rf4+ {[%clk 0:00:04]} 40. Rg4 {[%clk 0:01:03]}  Qg5+ {[%clk 0:00:03]} 0-1


[Site "https://www.chess.com"]

[Event "Titled Tuesday Blitz April 12 Early 2022"]
[White "Rodchenkov, Vitaly"]
[Black "Le Ruyet, Leopold"]
[WhiteFideId "4152964"]
[BlackFideId "645923"]
[WhiteElo "2337"]
[BlackElo "2276"]
[Result "0-1"]
[Round "02"]
[TimeControl "180+1"]
[Date "2022.04.13"]
[WhiteClock "0:00:33"]
[BlackClock "0:00:10"]

1. Nf3 {[%clk 0:03:00]}  Nf6 {[%clk 0:02:59]} 2. c4 {[%clk 0:03:01]}  g6 {[%clk 0:02:59]} 3. b4 {[%clk 0:03:00]}  Bg7 {[%clk 0:02:59]} 4. Bb2 {[%clk 0:03:00]}  O-O {[%clk 0:02:59]} 5. e3 {[%clk 0:03:00]}  d6 {[%clk 0:03:00]} 6. Be2 {[%clk 0:03:01]}  e5 {[%clk 0:02:59]} 7. d3 {[%clk 0:03:01]}  a5 {[%clk 0:02:54]} 8. a3 {[%clk 0:03:00]}  Nc6 {[%clk 0:02:49]} 9. b5 {[%clk 0:02:58]}  Ne7 {[%clk 0:02:49]} 10. O-O {[%clk 0:02:55]}  Nd7 {[%clk 0:02:41]} 11. a4 {[%clk 0:02:55]}  f5 {[%clk 0:02:38]} 12. d4 {[%clk 0:02:54]}  e4 {[%clk 0:02:37]} 13. Ne1 {[%clk 0:02:53]}  d5 {[%clk 0:02:27]} 14. c5 {[%clk 0:02:51]}  c6 {[%clk 0:02:24]} 15. Nd2 {[%clk 0:02:38]}  f4 {[%clk 0:02:14]} 16. Bg4 {[%clk 0:02:34]}  Nf5 {[%clk 0:02:06]} 17. Qb3 {[%clk 0:02:30]}  Nf6 {[%clk 0:02:03]} 18. Bh3 {[%clk 0:02:26]}  g5 {[%clk 0:01:59]} 19. Bxf5 {[%clk 0:02:16]}  Bxf5 {[%clk 0:01:58]} 20. bxc6 {[%clk 0:02:10]}  bxc6 {[%clk 0:01:57]} 21. Bc3 {[%clk 0:02:08]}  Rb8 {[%clk 0:01:48]} 22. Qc2 {[%clk 0:02:07]}  Qe8 {[%clk 0:01:41]} 23. Bxa5 {[%clk 0:02:06]}  Qh5 {[%clk 0:01:39]} 24. exf4 {[%clk 0:02:01]}  gxf4 {[%clk 0:01:38]} 25. Bc7 {[%clk 0:02:01]}  e3 {[%clk 0:01:22]} 26. Nd3 {[%clk 0:01:59]}  exd2 {[%clk 0:01:06]} 27. Bxb8 {[%clk 0:01:56]}  Rxb8 {[%clk 0:01:02]} 28. Qxd2 {[%clk 0:01:56]}  Bh6 {[%clk 0:00:48]} 29. f3 {[%clk 0:01:52]}  Qh4 {[%clk 0:00:34]} 30. Rfb1 {[%clk 0:01:42]}  Re8 {[%clk 0:00:33]} 31. Re1 {[%clk 0:01:38]}  Rf8 {[%clk 0:00:21]} 32. Re5 {[%clk 0:01:29]}  Nh5 {[%clk 0:00:20]} 33. Qe1 {[%clk 0:01:23]}  Qg5 {[%clk 0:00:19]} 34. Qe2 {[%clk 0:01:10]}  Bg7 {[%clk 0:00:19]} 35. Re7 {[%clk 0:01:08]}  Bxd3 {[%clk 0:00:17]} 36. Rxg7+ {[%clk 0:01:07]}  Nxg7 {[%clk 0:00:18]} 37. Qxd3 {[%clk 0:01:08]}  Nf5 {[%clk 0:00:18]} 38. Qa6 {[%clk 0:00:57]}  Ne3 {[%clk 0:00:18]} 39. Ra2 {[%clk 0:00:56]}  Rb8 {[%clk 0:00:18]} 40. Qd3 {[%clk 0:00:49]}  Rb4 {[%clk 0:00:16]} 41. a5 {[%clk 0:00:48]}  Rc4 {[%clk 0:00:16]} 42. Qd2 {[%clk 0:00:46]}  Qg6 {[%clk 0:00:13]} 43. Rb2 {[%clk 0:00:42]}  Ra4 {[%clk 0:00:11]} 44. Rb1 {[%clk 0:00:34]}  Qxb1+ {[%clk 0:00:10]} 45. Kf2 {[%clk 0:00:33]}  Qf1# {[%clk 0:00:10]} 0-1


[Site "https://www.chess.com"]

[Event "Titled Tuesday Blitz April 12 Early 2022"]
[White "Rustemov, Alexander"]
[Black "Seul, Georg"]
[WhiteFideId "4119002"]
[BlackFideId "4601653"]
[WhiteElo "2829"]
[BlackElo "2271"]
[Result "1-0"]
[Round "02"]
[TimeControl "180+1"]
[Date "2022.04.13"]
[WhiteClock "0:00:59"]
[BlackClock "0:00:06"]

1. d4 {[%clk 0:03:00]}  Nf6 {[%clk 0:02:58]} 2. c4 {[%clk 0:03:01]}  e6 {[%clk 0:02:59]} 3. Nf3 {[%clk 0:03:02]}  Bb4+ {[%clk 0:02:59]} 4. Bd2 {[%clk 0:03:02]}  c5 {[%clk 0:02:59]} 5. Bxb4 {[%clk 0:03:01]}  cxb4 {[%clk 0:02:58]} 6. g3 {[%clk 0:03:00]}  b6 {[%clk 0:02:53]} 7. Bg2 {[%clk 0:03:00]}  Bb7 {[%clk 0:02:53]} 8. O-O {[%clk 0:02:59]}  O-O {[%clk 0:02:52]} 9. Qd3 {[%clk 0:02:48]}  a5 {[%clk 0:02:49]} 10. a3 {[%clk 0:02:47]}  Na6 {[%clk 0:02:48]} 11. Nbd2 {[%clk 0:02:45]}  d6 {[%clk 0:02:48]} 12. e4 {[%clk 0:02:44]}  Qc7 {[%clk 0:02:46]} 13. Rfe1 {[%clk 0:02:38]}  Rfd8 {[%clk 0:02:45]} 14. h3 {[%clk 0:02:29]}  h6 {[%clk 0:02:35]} 15. Red1 {[%clk 0:02:26]}  Rac8 {[%clk 0:02:31]} 16. Ne1 {[%clk 0:02:24]}  e5 {[%clk 0:02:29]} 17. Nc2 {[%clk 0:02:23]}  bxa3 {[%clk 0:02:24]} 18. Qxa3 {[%clk 0:02:14]}  Nb4 {[%clk 0:02:13]} 19. Nxb4 {[%clk 0:02:09]}  axb4 {[%clk 0:02:13]} 20. Qe3 {[%clk 0:01:55]}  exd4 {[%clk 0:02:13]} 21. Qxd4 {[%clk 0:01:55]}  Qc5 {[%clk 0:02:12]} 22. Nb3 {[%clk 0:01:49]}  Qxd4 {[%clk 0:02:09]} 23. Rxd4 {[%clk 0:01:50]}  Re8 {[%clk 0:01:37]} 24. Nd2 {[%clk 0:01:41]}  Re6 {[%clk 0:01:20]} 25. Ra4 {[%clk 0:01:36]}  Nd7 {[%clk 0:00:25]} 26. Rxb4 {[%clk 0:01:34]}  Ra8 {[%clk 0:00:25]} 27. f3 {[%clk 0:01:21]}  Ra1+ {[%clk 0:00:22]} 28. Kf2 {[%clk 0:01:21]}  Rc1 {[%clk 0:00:20]} 29. Rd3 {[%clk 0:01:08]}  Bc6 {[%clk 0:00:16]} 30. Rc3 {[%clk 0:01:06]}  Rxc3 {[%clk 0:00:16]} 31. bxc3 {[%clk 0:01:06]}  g5 {[%clk 0:00:15]} 32. Nb3 {[%clk 0:01:03]}  Ne5 {[%clk 0:00:11]} 33. Ke3 {[%clk 0:00:59]}  Nd7 {[%clk 0:00:06]} 34. Nd4 {[%clk 0:00:59]} 1-0


[Site "https://www.chess.com"]